Workbook

Sheet Sheet1
A1: Mouse_ID | B1: ROIType | C1: Pericyte | D1: WhiskerStimAmp (%) | E1: ET1Ampt(%) | G1: WhiskerStimAmp_Norm (%) | H1: ET1Ampt_Norm(%) | J1: ROIType | K1: WhiskerStimAmp_Norm (%) | L1: ET1Ampt_Norm(%)
A2: 301 | B2: pa | C2: 100 | D2: 8.3113 | E2: -47.8571 | G2: =D2/MAX(D2:D10) -> 0.2213065428 | H2: =E2/MIN(E2:E10) -> 0.6056036283 | J2: pa_1
A3: 301 | B3: 1stCap | C3: 1 | D3: 16.2881 | E3: -79.0238 | G3: =D3/MAX(D2:D10) -> 0.4337062915 | H3: =E3/MIN($E$2:$E$10) -> 1 | J3: 1stCap_1_P | K3: 0.4337062915 | L3: 1 | N3: 0.4337062915 | O3: 1
A4: 301 | B4: 2ndCap | C4: 2 | D4: 37.5556 | E4: -61.9038 | G4: =D4/MAX(D2:D10) -> 1 | H4: =E4/MIN($E$2:$E$10) -> 0.7833564066 | J4: 2ndCap_1_P | K4: 1 | L4: 0.7833564066 | N4: 1 | O4: 0.7833564066
A5: 301 | B5: 2ndCap | C5: 22 | D5: 20.6202 | E5: -30.5323 | G5: =D5/MAX(D2:D10) -> 0.5490579301 | H5: 0.3863684105 | J5: 2ndCap_2 | K5: 0.5490579301 | L5: 0.3863684105
A6: 301 | B6: 2ndCap | C6: 22 | D6: 12.2682 | E6: -16.6942 | G6: =D6/MAX(D2:D10) -> 0.3266676607 | H6: 0.2112553433 | J6: 2ndCap_3 | K6: 0.3266676607 | L6: 0.2112553433
A7: 301 | B7: 3rdCap | C7: 22 | D7: 21.9127 | E7: -12.9735 | G7: =D7/MAX(D2:D10) -> 0.5834735699 | H7: 0.1641720596 | J7: 3rdCap_1
A8: 301 | B8: 3rdCap | C8: 3 | D8: 15.4942 | E8: -12.0225 | G8: =D8/MAX(D2:D10) -> 0.4125669674 | H8: 0.1521377104 | J8: 3rdCap_2_P
A9: 301 | B9: 3rdCap | C9: 0 | D9: 11.6993 | E9: -13.8399 | G9: =D9/MAX(D2:D10) -> 0.3115194538 | H9: 0.1751358452 | J9: 3rdCap_3
A10: 301 | B10: 4thCap | C10: 0 | D10: 13.2942 | E10: -6.8903 | G10: =D10/MAX($D$2:$D$10) -> 0.353987155 | H10: 0.08719271916 | J10: 4thCap_1
A11: 302 | B11: pa | C11: 100 | D11: 16.7695 | E11: -67.3469 | G11: =D11/MAX($D$11:$D$16) -> 0.4914657664 | H11: =E11/MIN($E$11:$E$16) -> 0.673469 | J11: pa_1
A12: 302 | B12: 1stCap | C12: 1 | D12: 34.1214 | E12: -100 | G12: =D12/MAX($D$11:$D$16) -> 1 | H12: =E12/MIN($E$11:$E$16) -> 1 | J12: 1stCap_1_P | K12: 1 | L12: 1 | N12: 1 | O12: 1
A13: 302 | B13: 1stCap | C13: 11 | D13: 24.1724 | E13: -100 | G13: 0.7084234527 | H13: 1 | J13: 1stCap_2 | K13: 0.7044012964 | L13: 0.1991508135
A14: 302 | B14: 1stCap | C14: 11 | D14: 15.8585 | E14: -31.1514 | G14: 0.4647669791 | H14: 0.311514 | J14: 1stCap_3 | K14: 0.140558356 | L14: 0.1131738665
A15: 302 | B15: 2ndCap | C15: 22 | D15: 4.0581 | E15: -53.1154 | G15: 0.1189312279 | H15: 0.531154 | J15: 2ndCap_1
A16: 302 | B16: 2ndCap | C16: 2 | D16: 3.0812 | E16: -62.1891 | G16: =D16/MAX($D$11:$D$16) -> 0.09030110136 | H16: 0.621891 | J16: 2ndCap_2_P
A17: 302Neck1 | B17: pa | C17: 100 | D17: 4.6807 | E17: -77.0223 | G17: =D17/MAX($D$17:$D$19) -> 0.3471685518 | H17: =E17/MIN($E$17:$E$19) -> 0.770223 | J17: pa_1
A18: 302Neck1 | B18: Neck | C18: 200 | D18: 13.4825 | E18: -100 | G18: =D18/MAX($D$17:$D$19) -> 1 | H18: 1 | J18: Neck
A19: 302Neck1 | B19: 1stCap | C19: 1 | D19: 10.318 | E19: -58.7798 | G19: 0.7652883367 | H19: =E19/MIN($E$17:$E$19) -> 0.587798 | J19: 1stCap_1_P
A20: 312 | B20: pa | C20: 100 | D20: 18.2517 | E20: -22.1741 | G20: =D20/MAX($D$20:$D$26) -> 0.3378843192 | H20: =E20/MIN($E$20:$E$26) -> 0.2357344316 | J20: pa_1
A21: 312 | B21: 1stCap | C21: 11 | D21: 15.1764 | E21: -11.1467 | G21: =D21/MAX($D$20:$D$26) -> 0.2809528746 | H21: =E21/MIN($E$20:$E$26) -> 0.1185013592 | J21: 1stCap_1 | K21: 0.2809528746 | L21: 0.1185013592
A22: 312 | B22: 1stCap | C22: 1 | D22: 54.0176 | E22: -94.0639 | G22: 1 | H22: 1 | J22: 1stCap_2_P | K22: 1 | L22: 1 | N22: 1 | O22: 1
A23: 312 | B23: 1stCap | C23: 11 | D23: 15.8481 | E23: -54.6487 | G23: 0.2933877107 | H23: 0.5809742101 | J23: 2ndCap_1 | K23: 0.2933877107 | L23: 0.5809742101
A24: 312 | B24: 1stCap | C24: 1 | D24: 5.3336 | E24: -74.3682 | G24: 0.09873818903 | H24: 0.7906136148 | J24: 2ndCap_2 | K24: 0.09873818903 | L24: 0.7906136148
A25: 312 | B25: 2ndCap | C25: 22 | D25: 14.2259 | E25: -57.0479 | G25: 0.2633567578 | H25: 0.6064802756 | J25: 3rdCap_1
A26: 312 | B26: 2ndCap | C26: 2 | D26: 15.8592 | E26: -30.2017 | G26: 0.2935931993 | H26: 0.3210764172 | J26: 3rdCap_2_P
A27: 312 | B27: Neck | C27: 200 | D27: 44.6047 | E27: -78.8348 | G27: 0.8257438316 | H27: 0.8380983565 | J27: Neck
A28: 312Neck1 | B28: pa | C28: 100 | D28: 66.6483 | E28: -55.1624 | G28: =D28/MAX($D$28:$D$30) -> 0.577188979 | H28: =E28/MIN($E$28:$E$30) -> 0.551624 | J28: pa_1
A29: 312Neck1 | B29: Neck | C29: 200 | D29: 115.4705 | E29: -100 | G29: =D29/MAX($D$28:$D$30) -> 1 | H29: =E29/MIN($E$28:$E$30) -> 1 | J29: Neck
A30: 312Neck1 | B30: 1stCap | C30: 1 | D30: 69.534 | E30: -100 | G30: 0.6021797775 | H30: 1 | J30: 1stCap_1_P
A31: 312Neck2 | B31: pa | C31: 100 | D31: =4.5465*2 -> 9.093 | E31: -42.9307 | G31: =D31/MAX($D$31:$D$33) -> 0.159888168 | H31: =E31/MIN($E$31:$E$33) -> 0.429307 | J31: pa_1
A32: 312Neck2 | B32: Neck | C32: 200 | D32: =28.4355*2 -> 56.871 | E32: -100 | G32: =D32/MAX($D$31:$D$33) -> 1 | H32: =E32/MIN($E$31:$E$33) -> 1 | J32: Neck
A33: 312Neck2 | B33: 1stCap | C33: 11 | D33: =7.6109*2 -> 15.2218 | E33: -51.9205 | G33: 0.267654868 | H33: 0.519205 | J33: 1stCap_1
A34: 313 | B34: pa | C34: 100 | D34: 9.7908 | E34: -40.0744 | G34: =D34/MAX($D$34:$D$39) -> 0.2411497395 | H34: =E34/MIN($E$34:$E$39) -> 0.4027772194 | J34: pa_1
A35: 313 | B35: 1stCap | C35: 1 | D35: 40.6005 | E35: -98.4775 | G35: =D35/MAX($D$34:$D$39) -> 1 | H35: =E35/MIN($E$34:$E$39) -> 0.9897713659 | J35: 1stCap_1_P | K35: 1 | L35: 0.9897713659 | N35: 1 | O35: 0.9897713659
A36: 313 | B36: 2ndCap | C36: 22 | D36: 29.0552 | E36: -96.9168 | G36: 0.7156365069 | H36: 0.974085182 | J36: 2ndCap_1 | K36: 0.7156365069 | L36: 0.974085182
A37: 313 | B37: 2ndCap | C37: 2 | D37: 16.0876 | E37: -99.4952 | G37: 0.3962414256 | H37: 1 | J37: 2ndCap_2_P | K37: 0.3962414256 | L37: 1 | N37: 0.3962414256 | O37: 1
A38: 313 | B38: 2ndCap | C38: 2 | D38: 26.9604 | E38: -94.7714 | G38: 0.6640410832 | H38: 0.9525223327 | J38: 3rdCap_1
A39: 313 | B39: 2ndCap | C39: 22 | D39: 5.7944 | E39: -60.0742 | G39: 0.1427174542 | H39: 0.6037899316 | J39: 3rdCap_2_P
A40: 313Neck1 | B40: pa | C40: 100 | D40: =2.7931*4 -> 11.1724 | E40: -43.4034 | G40: =D40/MAX($D$40:$D$42) -> 0.3226816391 | H40: =E40/MIN($E$40:$E$42) -> 0.6310807647 | J40: pa_1
A41: 313Neck1 | B41: Neck | C41: 200 | D41: =8.6559*4 -> 34.6236 | E41: -68.7763 | G41: =D41/MAX($D$40:$D$42) -> 1 | H41: =E41/MIN($E$40:$E$42) -> 1 | J41: Neck
A42: 313Neck1 | B42: 1stCap | C42: 11 | D42: =5.3767*4 -> 21.5068 | E42: -43.1575 | G42: 0.6211601336 | H42: 0.6275054052 | J42: 1stCap_1
A43: 314Neck2 | B43: pa | C43: 100 | D43: =4*2.4298 -> 9.7192 | E43: -29.6804 | G43: =D43/MAX($D$43:$D$45) -> 0.24393623 | H43: =E43/MIN($E$43:$E$45) -> 0.4033331612 | J43: pa_1
A44: 314Neck2 | B44: Neck | C44: 200 | D44: =4*5.0744 -> 20.2976 | E44: -69.2575 | G44: =D44/MAX($D$43:$D$45) -> 0.509436993 | H44: =E44/MIN($E$43:$E$45) -> 0.9411546479 | J44: Neck
A45: 314Neck2 | B45: 1stCap | C45: 1 | D45: =4*9.9608 -> 39.8432 | E45: -73.5878 | G45: 1 | H45: 1 | J45: 1stCap_1_P
A46: 314 | B46: pa | C46: 100 | D46: 7.0474 | E46: -50.6038 | G46: =D46/MAX($D$46:$D$53) -> 0.1720233257 | H46: =E46/MIN($E$46:$E$53) -> 0.507762361 | J46: pa_1
A47: 314 | B47: 1stCap | C47: 1 | D47: 20.4871 | E47: -99.6604 | G47: =D47/MAX($D$46:$D$53) -> 0.5000793308 | H47: =E47/MIN($E$46:$E$53) -> 1 | J47: 1stCap_1_P | K47: 0.5000793308 | L47: 1 | N47: 0.5000793308 | O47: 1
A48: 314 | B48: 1stCap | C48: 11 | D48: 17.2025 | E48: -48.959 | G48: 0.4199039731 | H48: 0.4912583132 | J48: 1stCap_2 | K48: 0.4199039731 | L48: 0.4912583132
A49: 314 | B49: 1stCap | C49: 1 | D49: 40.9677 | E49: -60.7314 | G49: 1 | H49: 0.6093834663 | J49: 1stCap_3_P | K49: 1 | L49: 0.6093834663 | N49: 1 | O49: 0.6093834663
A50: 314 | B50: 1stCap | C50: 11 | D50: 22.6451 | E50: -52.8715 | G50: 0.5527549753 | H50: 0.5305166345 | J50: 1stCap_4_P | K50: 0.5527549753 | L50: 0.5305166345 | N50: 0.5527549753 | O50: 0.5305166345
A51: 314 | B51: 2ndCap | C51: 22 | D51: 5.4109 | E51: -8.475 | G51: 0.1320772218 | H51: 0.08503879174 | J51: 2ndCap_1
A52: 314 | B52: 2ndCap | C52: 22 | D52: 10.4738 | E52: -10.8942 | G52: 0.2556599467 | H52: 0.1093132277 | J52: 2ndCap_2
A53: 314 | B53: 3rdCap | C53: 0 | D53: 2.3699 | E53: -4.3372 | G53: 0.05784801197 | H53: 0.04351979322 | J53: 3rdCap_1
A54: 317 | B54: pa | C54: 100 | D54: 29.2031 | E54: -31.1136 | G54: =D54/MAX($D$53:$D$65) -> 0.832298296 | H54: =E54/MIN($E$53:$E$65) -> 0.3182892322 | J54: pa_1
A55: 317 | B55: pa | C55: 100 | D55: 15.688 | E55: -8.5895 | G55: =D55/MAX($D$53:$D$65) -> 0.447113343 | H55: =E55/MIN($E$53:$E$65) -> 0.08786978556 | J55: pa_2
A56: 317 | B56: 1stCap | C56: 1 | D56: 27.5472 | E56: -97.7526 | G56: 0.785104582 | H56: 1 | J56: 1stCap_2_P | K56: 0.785104582 | L56: 1 | N56: 0.785104582 | O56: 1
A57: 317 | B57: 1stCap | C57: 1 | D57: 15.2883 | E57: -87.2921 | G57: 0.4357217569 | H57: 0.8929900586 | J57: 1stCap_3_P | K57: 0.4357217569 | L57: 0.8929900586 | N57: 0.4357217569 | O57: 0.8929900586
A58: 317 | B58: 1stCap | C58: 11 | D58: 35.0873 | E58: -37.311 | G58: 1 | H58: 0.3816880574 | J58: 1stCap_4_P | K58: 1 | L58: 0.3816880574 | N58: 1 | O58: 0.3816880574
A59: 317 | B59: 1stCap | C59: 11 | D59: 31.0732 | E59: -31.5925 | G59: 0.8855967829 | H59: 0.3231883346 | J59: 1stCap_5 | K59: 0.8855967829 | L59: 0.3231883346
A60: 317 | B60: 2ndCap | C60: 2 | D60: 13.7069 | E60: -28.4416 | G60: 0.3906513183 | H60: 0.2909549209 | J60: 2ndCap_P | K60: 0.3906513183 | L60: 0.2909549209
A61: 317 | B61: 2ndCap | C61: 22 | D61: 16.8367 | E61: -28.5602 | G61: 0.4798516842 | H61: 0.2921681879 | J61: 2ndCap_2 | K61: 0.4798516842 | L61: 0.2921681879
A62: 317 | B62: 2ndCap | C62: 22 | D62: 17.7057 | E62: -10.5906 | G62: 0.5046184802 | H62: 0.1083408523 | J62: 2ndCap_3 | K62: 0.5046184802 | L62: 0.1083408523
A63: 317 | B63: 2ndCap | C63: 22 | D63: 6.2308 | E63: -8.5988 | G63: 0.1775799221 | H63: 0.0879649237 | J63: 2ndCap_4 | K63: 0.1775799221 | L63: 0.0879649237
A64: 317 | B64: 3rdCap | C64: 3 | D64: 2.2213 | E64: 1.098 | G64: 0.06330780653 | H64: -0.01123243781 | J64: 3rdCap_P
A65: 317 | B65: 3rdCap | C65: 0 | D65: 6.5611 | E65: -3.2171 | G65: 0.1869935846 | H65: 0.03291063358 | J65: 3rdCap_2
A66: 317Neck2 | B66: pa | C66: 100 | D66: 4.4234 | E66: -1.1179 | G66: =D66/MAX($D$66:$D$68) -> 0.04557265105 | H66: =E66/MIN($E$66:$E$68) -> 0.01240159926 | J66: pa_1
A67: 317Neck2 | B67: Neck | C67: 200 | D67: 97.0626 | E67: -90.1416 | G67: =D67/MAX($D$66:$D$68) -> 1 | H67: =E67/MIN($E$66:$E$68) -> 1 | J67: Neck
A68: 317Neck2 | B68: 1stCap | C68: 11 | D68: 44.0371 | E68: -71.7627 | G68: 0.4536979228 | H68: 0.7961107857 | J68: 1stCap_1
A69: 332 | B69: pa | C69: 100 | D69: 15.1145 | E69: -30.9616 | G69: =D69/MAX($D$69:$D$72) -> 0.199728049 | H69: =E69/MIN($E$69:$E$72) -> 0.3152100324 | J69: pa_1
A70: 332 | B70: 1stCap | C70: 1 | D70: 32.3773 | E70: -55.9779 | G70: =D70/MAX($D$69:$D$72) -> 0.4278444514 | H70: =E70/MIN($E$69:$E$72) -> 0.5698928891 | J70: 1stCap_P | K70: 0.1386415761 | L70: 0.559779 | N70: 0.1386415761 | O70: 0.559779
A71: 332 | B71: 2ndCap | C71: 2 | D71: 75.6754 | E71: -82.5863 | G71: =D71/MAX($D$69:$D$72) -> 1 | H71: =E71/MIN($E$69:$E$72) -> 0.8407844008 | J71: 2ndCap_P | K71: 0.3240466847 | L71: 0.825863 | N71: 0.3240466847 | O71: 0.825863
A72: 332 | B72: 2ndCap | C72: 2 | D72: 69.2712 | E72: -98.2253 | G72: =D72/MAX($D$69:$D$72) -> 0.9153727631 | H72: =E72/MIN($E$69:$E$72) -> 1 | J72: 2ndCap_2 | K72: 0.2966235092 | L72: 0.982253
A73: 332Neck2 | B73: pa | C73: 100 | D73: 4.664 | E73: -11.9932 | G73: =D73/MAX($D$73:$D$75) -> 0.04461488572 | H73: =E73/MIN($E$73:$E$75) -> 0.119932 | J73: pa_1
A74: 332Neck2 | B74: Neck | C74: 200 | D74: 99.5718 | E74: -100 | G74: =D74/MAX($D$73:$D$75) -> 0.9524838075 | H74: =E74/MIN($E$73:$E$75) -> 1 | J74: Neck
A75: 332Neck2 | B75: 1stCap | C75: 1 | D75: 104.5391 | E75: -100 | G75: 1 | H75: 1 | J75: 1stCap_1_P

Sheet Sheet2

Sheet Sheet3
